Cogmind - Beta 13 @@@ ROGUE MODE // 2024.05.04 @ 19:21:59 Player: BionicBot Result: Destroyed by Piercing Trap Performance ------------- Evolutions (0) 0 Regions Visited (2) 400 Robots Destroyed (25) 125 Value Destroyed (629) 629 Prototype IDs (5) 100 Alien Tech Used (0) 0 Bonus (0) 0 TOTAL SCORE: 1254 Bonus ------- None Cogmind --------- Core Integrity 0/250 Matter 300/300 Energy 196/200 System Corruption 0% Temperature Cool (2) Movement Walking (190) Ox1 Location -10/Subcaves Parts ------- > --- POWER (1) -------- Subdweller Power Source > --- PROPULSION (2) --- Aluminum Leg Aluminum Leg > --- UTILITY (2) ------ Improved Heat Sink Medium Storage Unit > --- WEAPON (2) ------- Medium Laser Beam Cannon > --- INVENTORY (10) --- Ion Engine Aluminum Leg Aluminum Leg Flight Unit Small Storage Unit Signal Interpreter Targeting Computer Subdweller Laser Subdweller Machine Gun Mining Laser Peak State ------------ > --- POWER ------------ Light Nuclear Core > --- PROPULSION ------- Aluminum Leg Aluminum Leg > --- UTILITY ---------- Improved Heat Sink Medium Storage Unit > --- WEAPON ----------- Medium Laser Assault Rifle > --- INVENTORY -------- Light Ion Engine Aluminum Leg Aluminum Leg Aluminum Leg Flight Unit Small Storage Unit Signal Interpreter Targeting Computer Small Laser Beam Cannon [Rating: 12] Favorites ----------- Power Ion Engine Engine Ion Engine Power Core Light Nuclear Core Propulsion Aluminum Leg Leg Aluminum Leg Utility Improved Heat Sink Device Improved Heat Sink Storage Medium Storage Unit Weapon Medium Laser Energy Gun Medium Laser Energy Cannon Beam Cannon Ballistic Gun Assault Rifle Special Weapon Mining Laser Build | -11 -10 -10 ------- Run | Yrd Mat Sub Slots Evolved . | . . . Power . | . . . Propulsion . | . . . Utility . | . . . Weapon . | . . . Parts Attached 22 | 7 11 4 Power 5 | 2 2 1 Engine 4 | 2 1 1 Core 1 | . 1 . Reactor . | . . . Propulsion 6 | 2 4 . Treads . | . . . Leg 6 | 2 4 . Wheel . | . . . Hover . | . . . Flight . | . . . Utility 3 | 1 2 . Device 1 | . 1 . Storage 2 | 1 1 . Processor . | . . . Hackware . | . . . Protection . | . . . Artifact . | . . . Weapon 8 | 2 3 3 Energy Gun 3 | 1 1 1 Energy Cannon 1 | . . 1 Ballistic Gun 3 | 1 1 1 Ballistic Cannon . | . . . Launcher . | . . . Special Weapon 1 | . 1 . Impact Weapon . | . . . Slashing Weapon . | . . . Piercing Weapon . | . . . Special Melee Weapon . | . . . Unidentified Prototypes . | . . . Parts Lost 2 | . 1 1 Power 1 | . 1 . Propulsion . | . . . Utility . | . . . Weapon 1 | . . 1 Highest Loss Streak 1 | . 1 1 To Critical Strikes . | . . . Average Slot Usage (%) 98 | . 98 100 Engine 9 | . 8 14 Core 4 | . 5 . Leg 28 | . 28 28 Device 13 | . 12 14 Storage 14 | . 14 14 Energy Gun 14 | . 14 18 Energy Cannon 1 | . . 9 Ballistic Gun 11 | . 13 . Naked Turns . | . . . Heaviest Build 21 | 13 20 21 Greatest Support 20 | 20 20 20 Greatest Overweight (x) 1 | . . 1 Average Overweight (x) . | . . . Largest Inventory Capacity 10 | 8 10 10 Average Capacity 9 | 7 9 10 Most Carried 10 | 2 10 10 Average Carried 8 | 1 8 9 Final Capacity 10 | 8 10 10 Final Carried 10 | 2 10 10 Class Distribution -------------------- 60% | Scavenger-Mutant 39% | Mutant Dominant Class ---------------- Scavenger-Mutant | -10/Materials Scavenger-Mutant | -10/Subcaves Resources | -11 -10 -10 ----------- Run | Yrd Mat Sub Matter Collected 675 | 214 416 45 Remotely . | . . . Salvage Created 824 | . 641 183 Parts 41 | . 30 11 Haulers Intercepted 1 | . 1 . Recyclers Shooed 1 | . 1 . Parts Field Recycled . | . . . Retrieved Matter . | . . . Parts Self-Destructed . | . . . Prevented . | . . . Kills | -11 -10 -10 ------- Run | Yrd Mat Sub Combat Hostiles Destroyed 20 | . 16 4 Guns 17 | . 16 1 Cannons 3 | . . 3 Classes Destroyed 7 | . 6 1 Hauler 1 | . 1 . Recycler 1 | . 1 . Operator 2 | . 2 . Watcher 1 | . 1 . Swarmer 6 | . 6 . Grunt 10 | . 10 . Subdweller 4 | . . 4 Best Kill Streak 3 | . 3 2 Combat Bots Only 3 | . 3 2 Max Kills in Single Turn 1 | . 1 1 Gunslinging . | . . . Exploded . | . . . Melee . | . . . Uniques/NPCs Destroyed . | . . . Combat | -11 -10 -10 -------- Run | Yrd Mat Sub Hostile Shots Fired 119 | . 87 32 Missed 33 | . 20 13 Damage Taken 1124 | . 662 462 Core 252 | . 140 112 Absorbed by Shields . | . . . Core Remaining (%) 100 | 100 . . Volleys Fired 110 | . 88 22 Largest 2 | . 2 2 Hottest 110 | . 100 110 Shots Fired 219 | . 175 44 Gun 201 | . 174 27 Cannon 17 | . . 17 Launcher . | . . . Special 1 | . 1 . Kinetic 87 | . 87 . Thermal 127 | . 88 39 Explosive . | . . . Electromagnetic 5 | . . 5 Robot Hit Streak 25 | . 25 22 Robot Miss Streak 4 | . 3 4 Penetration Max . | . . . Secondary Targets . | . . . Shots Hit Robots 162 | . 124 38 Core Hits 49 | . 40 9 Critical Kills . | . . . Critical Parts Destroyed . | . . . Critical Strikes 10 | . 8 2 Burn 10 | . 8 2 Melee Attacks . | . . . Impact . | . . . Slashing . | . . . Piercing . | . . . Sneak Attacks . | . . . Combat Hostiles . | . . . Follow-up Attacks . | . . . Damage Inflicted 2122 | . 1544 578 Guns 1847 | . 1531 316 Cannons 262 | . . 262 Explosions . | . . . Melee . | . . . Ramming 13 | . 13 . Kinetic 779 | . 779 . Thermal 1250 | . 752 498 Explosive . | . . . Electromagnetic 80 | . . 80 Impact . | . . . Slashing . | . . . Piercing . | . . . Highest Corruption . | . . . Average Corruption . | . . . Corruption Purged . | . . . Corruption Blocked . | . . . Overload Shots . | . . . Overflow Damage . | . . . Projectiles . | . . . Explosions . | . . . Melee . | . . . Knockbacks . | . . . Impact . | . . . Kinetic . | . . . Secondary . | . . . Self-Inflicted Damage . | . . . Shots . | . . . Rammed . | . . . Targets Rammed 2 | . 2 . Kicked 2 | . 2 . Crushed . | . . . Highest Temperature 85 | . 85 . Average Temperature 38 | . 38 . Received Heat Transfer 345 | . 234 111 Siege Activations . | . . . Robots Corrupted . | . . . Combat Hostiles . | . . . Parts Fried . | . . . Impact Corruptions . | . . . Robots Melted . | . . . Combat Hostiles . | . . . Parts Melted 13 | . 7 6 Heat Transferred 4065 | . 2659 1406 Parts Sabotaged . | . . . Parts Stolen . | . . . Parts Stripped . | . . . Power Chain Reactions . | . . . Alert | -11 -10 -10 ------- Run | Yrd Mat Sub Peak Influence 204 | . 204 . Initial . | . . . Average 47 | . 49 . Maximum Alert Level 1 | . 1 . Low Security (%) 97 | 100 97 . Level 1 2 | . 2 . Level 2 . | . . . Level 3 . | . . . Level 4 . | . . . Level 5 . | . . . High Security . | . . . Max Security . | . . . Squads Dispatched 4 | . 4 . Investigation 2 | . 2 . Extermination . | . . . Reinforcement 2 | . 2 . Assault . | . . . Garrison . | . . . Intercept . | . . . Searches Triggered . | . . . Construction Impeded . | . . . Haulers Reinforced . | . . . Active Scanning Responses . | . . . Cargo Convoy Interrupts . | . . . Stealth | -11 -10 -10 --------- Run | Yrd Mat Sub Distress Signals 2 | . 2 . Communications Jammed . | . . . Distress Signals . | . . . Times Spotted 39 | . 33 6 Peak Tracking Total 5 | . 5 2 Tactical Retreats . | . . . Traps | -11 -10 -10 ------- Run | Yrd Mat Sub Traps Triggered 3 | . 2 1 Indirectly . | . . . Trap Hack Attempts . | . . . Triggered . | . . . Disarmed . | . . . Reprogrammed . | . . . Reused . | . . . Traps Extracted . | . . . Installed . | . . . Triggered . | . . . Machines | -11 -10 -10 ---------- Run | Yrd Mat Sub Machines Disabled . | . . . Max in Single Turn . | . . . Machines Repaired . | . . . Machines Dismantled . | . . . Machines Sabotaged . | . . . Overloaded Fab Kills . | . . . Hacking | -11 -10 -10 --------- Run | Yrd Mat Sub Machines Accessed 7 | . 7 . Terminals 7 | . 7 . Fabricators . | . . . Repair Stations . | . . . Recycling Units . | . . . Scanalyzers . | . . . Garrison Access . | . . . Total Hacks 14 | . 14 . Successful 6 | . 6 . Failed 8 | . 8 . Catastrophic 4 | . 4 . Database Lockouts . | . . . Manual 8 | . 8 . Terminals 14 | . 14 . Fabricators . | . . . Repair Stations . | . . . Recycling Units . | . . . Scanalyzers . | . . . Garrison Access . | . . . Terminal Hacks 6 | . 6 . Prototype ID Bank 3 | . 3 . Level Access Points 1 | . 1 . Terminal Index 1 | . 1 . Hauler Manifests 1 | . 1 . Fabricator Hacks . | . . . Repair Station Hacks . | . . . Recycling Unit Hacks . | . . . Scanalyzer . | . . . Garrison Access Hacks . | . . . Unauthorized Hacks . | . . . Terminals . | . . . Fabricators . | . . . Repair Stations . | . . . Recycling Units . | . . . Scanalyzers . | . . . Garrison Access . | . . . Data Cores Recovered . | . . . Used . | . . . Hacking Detections 6 | . 6 . Full Trace Events 1 | . 1 . Feedback Events . | . . . Feedback Blocked . | . . . Robot Schematics Acquired . | . . . Robots Built . | . . . Authchips . | . . . Time . | . . . Total Robot Build Rating . | . . . Part Schematics Acquired . | . . . Parts Built . | . . . Authchips . | . . . Time . | . . . Total Part Build Rating . | . . . Parts Repaired . | . . . Time . | . . . Parts Recycled . | . . . Recycled Matter . | . . . Retrieved Matter . | . . . Retrieved Components . | . . . Parts Scanalyzed . | . . . Part Schematics Acquired . | . . . Parts Damaged . | . . . Bothacking | -11 -10 -10 ------------ Run | Yrd Mat Sub Used RIF Installer . | . . . Robots Hacked . | . . . Non-combat . | . . . Combat . | . . . Robot Hacks Applied . | . . . Relay Couplers Released . | . . . Fabnet Peak Effective % . | . . . Robots Rewired . | . . . Allies Hacked . | . . . Hacks Repelled . | . . . Allies | -11 -10 -10 -------- Run | Yrd Mat Sub Total Allies . | . . . Largest Group . | . . . Highest-Rated Group . | . . . Highest-Rated Ally . | . . . Total Orders . | . . . Ally Attacks . | . . . Total Damage . | . . . Kills . | . . . Allies Corrupted . | . . . Allies Melted . | . . . Intel | -11 -10 -10 ------- Run | Yrd Mat Sub Robot Analysis Total . | . . . Derelict Logs Recovered . | . . . Drone Launches . | . . . Drone Recoveries . | . . . Exploration | -11 -10 -10 ------------- Run | Yrd Mat Sub Turns Passed 2949 | 76 2357 516 Spaces Moved 1320 | 55 1027 238 Core 1 | 1 . . Treads . | . . . Legs 1319 | 54 1027 238 Wheels . | . . . Hover . | . . . Flight . | . . . Fastest Speed 50 | 50 120 120 Average Speed 131 | 118 120 185 Slowest Speed 190 | 120 120 190 Overloaded Moves . | . . . Propulsion Burnouts . | . . . Robots Hopped . | . . . Cave-ins Triggered . | . . . Exploration Rate (%) 40 | 4 98 20 Regions Visited 2 Branch Regions 1 Pre-discovered Areas . | . . . Known Exits Taken . | . . . Unknown Exits Taken 2 | 1 1 . Scrap Searched 1 | . . 1 Spaces Dug . | . . . Terrain Destroyed . | . . . Melee . | . . . Projectile . | . . . AOE . | . . . Terrain Rammed . | . . . Walls Destroyed . | . . . Machines Disabled . | . . . Actions | -11 -10 -10 --------- Run | Yrd Mat Sub Total 2304 | 62 1972 270 Wait 831 | . 831 . Move 1318 | 54 1026 238 Hop . | . . . Pick Up 12 | 1 8 3 Fast Attach 9 | 6 3 . Attach 1 | . . 1 Detach . | . . . Swap 12 | 1 8 3 Drop 9 | . 6 3 Fire 110 | . 88 22 Melee . | . . . Ram . | . . . Kick 2 | . 2 . Crush . | . . . Escape Stasis . | . . . Rewire . | . . . Trap . | . . . Miscellaneous . | . . . Route ------- -11/Scrapyard -10/Materials (discovered 5 exits: *Mat x3 / [*Min] / [*Sub]) -10/Subcaves History --------- Turn | Location | Event 9 | -11/Scrapyard | Discovered new exit (range 16) 77 | -11/Scrapyard | Entered Materials 285 | -10/Materials | Discovered new exit (range 15) 341 | -10/Materials | Build established: Mutant 461 | -10/Materials | Discovered new exit (range 16) 731 | -10/Materials | Discovered new exit (range 16) 886 | -10/Materials | Identified exit to Materials 1147 | -10/Materials | Core integrity fell below 50% 1470 | -10/Materials | Build established: Scavenger-Mutant 2428 | -10/Materials | Discovered new exit (range 3) 2434 | -10/Materials | Entered Subcaves 2445 | -10/Subcaves | Shifting Twisted Machinery released Riot Gun 2452 | -10/Subcaves | Shifting Twisted Machinery released Scrap Shield 2765 | -10/Subcaves | Core integrity fell below 20% 2950 | -10/Subcaves | Destroyed by Piercing Trap Last Messages --------------- 02774_ 5H-Y94(R) affixes Scrap Shield Fragment to Scrap Shield. 02778_ Subatomizers dissect the Sub. Monowheel. 02779_ Sub. Optics melted. 02779_ 5H-Y94(R) destroyed. 02793_ Subatomizers dissect the Sub. Monowheel. 02797_ Acquired 10 matter. 02806_ Subatomizers dissect the Sub. Monowheel. 02814_ Searching scrap... 02814_ Found Sub. Laser. 02814_ Found Sub. Machine Gun. 02814_ Found 22 Matter. 02818_ Dropped Assault Rifle. 02819_ Acquired Sub. Laser. 02823_ Dropped Lgt. Ion Engine. 02824_ Acquired Sub. Machine Gun. 02835_ Subatomizers dissect the Sub. Monowheel. 02869_ Subatomizers dissect the Disposable Heat Sink. 02950_ Triggered Piercing Trap. 02950_ Spikes shoot up from the floor. 02950_ Critical hit (Impale). Map ----- +----------------------------------------------------+ | ???????????????????????????????????????????? # | | ??????????????????????????????????????????? | | ??????????????????????????????????????????? | | ??????????????????????????????????????????? | | ???????????????????????????????????????????? | | ????????????????????????????????????????????? | | ????????????????????????????????????????????? | | ????????????????????????????????????????????? | | ?????????????????????????? #???????###???????# | | ?????????????????????????# #?????## ####???? | | ????????????????????????## #???## #??## | | ???????????????????????## #### #### # | | ???????????????????????? ???# | | ????????????????????????? ???# | | ??????????????????????????# ???## # ## | | ???????????????????????????# ???## ##### | | ???????????????????????????# #### #??## | | ???????????????????????????# ## ##?## | | ??????????????????????###???# #??# # | | ????????????????##???## ##??#### #?## # | | ????????????????# ??# ##????# ### # | | ????????????"" ## ## ###?## ### | | ????????????" ### # ### | | ????????????? ^## ###### | | ????????????????# ^^ #???# | | ???????????????????????# @ #??# | | ???????????????????????## #### ##?# ### | | ????????????????????????## #??######?# #??? | | ?????????????????????????###?????????###### #???? | | ??????????????????????????????????????????###????? | | ?????????????????????????????????????????????????? | | ???????????????????????????????????????????????### | | ???????????????????????????????????????????????# | | ???????????????????????????????????????????????# | | ???????????????????????????????????????????????### | | ?????????????????????????????????????????????????? | | ?????????????????????????????????????????????????? | | ?????????????????????????????????????????????????? | | ?????????????????????????????????????????????????? | | ?????????????????????????????????????????????????? | | ?????????????????????????????????????????????????? | | ?????????????????????????????????????????????????? | | ?????????????????????????????????????????????????? | | ?????????????????????????????????????????????????? | | ?????????????????????????????????????????????????? | | ?????????????????????????????????????????????????? | | ?????????????????????????????????????????????????? | | ?????????????????????????????????????????????????? | | ?????????????????????????????????????????????????? | | ?????????????????????????????????????????????????? | +----------------------------------------------------+ Best States ------------- Heat Dissipation 39 Energy Generation 15 Energy Capacity 250 Matter Stores 300 Matter Capacity 300 Sight Range 16 Terrain Scan Density 10 Evasion (%) 55 Item Schematics ----------------- None Robot Schematics ------------------ None Fabricated ------------ Nothing Alien Tech Used ----------------- None Achievements -------------- None Challenges ------------ None Game ------ Seed RecyclingSmartbombWings Manual? 0 Play Time 00:18:31 Cumulative 34.1 hours Start 2024.05.04 @ 19:01:58 End 2024.05.04 @ 19:21:59 Sessions 1 Manual Loads 0 Difficulty Rogue Special Mode None Game No. 36 Rogue 36 Adventurer 0 Explorer 0 Win Type - Total 1 Types 1/0/0/0/0/0/0/0/0 Lore% 7 Gallery% 28 Achievement% 25 Wizard Run 0 Options --------- Layout 0 ASCII 0 Keyboard 1 Movement Numpad Keybinds 0 Fullscreen 2 Font 18/SmallcapsGlow Map View 76x50 Zoom Use 0% Tactical HUD 1 Map Filters NONE Filters NONE Steam 1 RUN: e358681d-281e-4f7c-998e-c22d9665ada8